lending/lending_fUSD_20240710
["ID","MTS","AMOUNT","RATE_DAILY","PERIOD"]
[331634712,1720596643590,-500.0,0.00013698,2]
[331634713,1720596643600,-1469.47,0.00013698,2]
[331634714,1720596643609,-749.38,0.00013698,2]
[331634715,1720596643619,-706.4,0.00013698,2]
[331634716,1720596643629,-1137.92,0.00013698,2]
[331634717,1720596643638,-500.0,0.00013698,2]
[331634718,1720596643647,-500.0,0.00013698,2]
[331634719,1720596643656,-1438.11,0.00013698,2]
[331634720,1720596643665,-500.0,0.00013698,2]
[331634721,1720596643675,-1881.57,0.00013698,2]
[331634722,1720596643684,-1394.29,0.00013698,2]
[331634723,1720596643694,-1613.63,0.00013698,2]
[331634724,1720596643705,-500.0,0.00013698,2]
[331634725,1720596643714,-620.56,0.00013698,2]
[331634726,1720596643723,-500.0,0.00013698,2]
[331634727,1720596643732,-736.72,0.00013698,2]
[331634728,1720596643742,-1177.56,0.00013698,2]
[331634729,1720596643751,-500.0,0.00013698,2]
[331634730,1720596643760,-500.0,0.00013698,2]
[331634731,1720596643769,-500.0,0.00013698,2]
[331634732,1720596643780,-500.0,0.00013698,2]
[331634733,1720596643789,-707.83,0.00013698,2]
[331634734,1720596643798,-1268.05,0.00013698,2]
[331634735,1720596643807,-883.04,0.00013698,2]
[331634736,1720596643817,-500.0,0.00013698,2]
[331634737,1720596643827,-500.0,0.00013698,2]
[331634738,1720596643836,-500.0,0.00013698,2]
[331634739,1720596643845,-1987.16,0.00013698,2]
[331634740,1720596643854,-644.21,0.00013698,2]
[331634741,1720596643864,-1314.46,0.00013698,2]
[331634742,1720596643875,-500.0,0.00013698,2]
[331634743,1720596643884,-258.01109743,0.00013698,2]
[331634744,1720596643894,-500.0,0.00013698,2]
[331634745,1720596643903,-500.0,0.00013698,2]
[331634746,1720596643912,-500.0,0.00013698,2]
[331634747,1720596643922,-1000.0,0.00013698,2]
[331634748,1720596643931,-800.31,0.00013698,2]
[331634749,1720596643941,-500.0,0.00013698,2]
[331634750,1720596643951,-500.0,0.00013698,2]
[331634751,1720596643960,-680.87,0.00013698,2]
[331634752,1720596643971,-520.89,0.00013698,2]
[331634753,1720596643981,-500.0,0.00013698,2]
[331634754,1720596643992,-1391.11,0.00013698,2]
[331634755,1720596644001,-1242.65,0.00013698,2]
[331634756,1720596644011,-863.12,0.00013698,2]
[331634757,1720596644021,-509.8,0.00013698,2]
[331634758,1720596644031,-872.62,0.00013698,2]
[331634759,1720596644040,-500.0,0.00013698,2]
[331634760,1720596644050,-609.72,0.00013698,2]
[331634761,1720596644060,-828.71,0.00013698,2]
[331634762,1720596644070,-536.77,0.00013698,2]
[331634763,1720596644079,-1808.02,0.00013698,2]
[331634764,1720596644089,-643.51,0.00013698,2]
[331634765,1720596644099,-831.82,0.00013698,2]
[331634766,1720596644109,-500.0,0.00013698,2]
[331634767,1720596644119,-769.23,0.00013698,2]
[331634768,1720596644130,-500.0,0.00013698,2]
[331634769,1720596644139,-500.0,0.00013698,2]
[331634770,1720596644148,-500.0,0.00013698,2]
[331634771,1720596644157,-500.0,0.00013698,2]
[331634772,1720596644167,-925.61,0.00013698,2]
[331634773,1720596644176,-196.31460872,0.00013698,2]
[331634774,1720596644185,-500.0,0.00013698,2]
[331634775,1720596644195,-566.165462,0.00013698,2]
[331634776,1720596644204,-807.57,0.00013698,2]
[331634777,1720596644214,-500.0,0.00013698,2]
[331634778,1720596644223,-500.0,0.00013698,2]
[331634779,1720596644232,-1079.84,0.00013698,2]
[331634780,1720596644242,-1869.54,0.00013698,2]
[331634781,1720596644251,-500.0,0.00013698,2]
[331634782,1720596644261,-1352.94,0.00013698,2]
[331634783,1720596644271,-500.0,0.00013698,2]
[331634784,1720596644279,-500.0,0.00013698,2]
[331634785,1720596644289,-500.0,0.00013698,2]
[331634786,1720596644298,-500.0,0.00013698,2]
[331634787,1720596644308,-1299.7,0.00013698,2]
[331634788,1720596644317,-1466.42,0.00013698,2]
[331634789,1720596644327,-1182.98,0.00013698,2]
[331634790,1720596644337,-500.0,0.00013698,2]
[331634791,1720596644348,-645.29,0.00013698,2]
[331634792,1720596644358,-500.0,0.00013698,2]
[331634793,1720596644368,-500.0,0.00013698,2]
[331634794,1720596644379,-500.0,0.00013698,2]
[331634795,1720596644388,-625.5,0.00013698,2]
[331634796,1720596644397,-1134.26,0.00013698,2]
[331634797,1720596644407,-500.0,0.00013698,2]
[331634798,1720596644416,-500.0,0.00013698,2]
[331634799,1720596644425,-500.0,0.00013698,2]
[331634800,1720596644436,-2372.34,0.00013698,2]
[331634801,1720596644446,-500.0,0.00013698,2]
[331634802,1720596644456,-500.0,0.00013698,2]
[331634803,1720596644466,-561.13,0.00013698,2]
[331634804,1720596644475,-638.07,0.00013698,2]
[331634805,1720596644484,-500.0,0.00013698,2]
[331634806,1720596644493,-500.0,0.00013698,2]
[331634807,1720596644502,-646.27,0.00013698,2]
[331634808,1720596644511,-1017.65,0.00013698,2]
[331634809,1720596644521,-1903.49,0.00013698,2]
[331634810,1720596644531,-1273.82,0.00013698,2]
[331634811,1720596644540,-1655.78,0.00013698,2]
[331634812,1720596644549,-593.36,0.00013698,2]
[331634813,1720596644559,-604.3581783,0.00013698,2]
[331634814,1720596644569,-500.0,0.00013698,2]
[331634815,1720596644578,-500.0,0.00013698,2]
[331634816,1720596644587,-500.0,0.00013698,2]
[331634817,1720596644595,-500.0,0.00013698,2]
[331634818,1720596644605,-516.78,0.00013698,2]
[331634819,1720596644615,-500.0,0.00013698,2]
[331634820,1720596644625,-1419.29,0.00013698,2]
[331634821,1720596644634,-500.0,0.00013698,2]
[331634822,1720596644643,-500.0,0.00013698,2]
[331634823,1720596644654,-500.0,0.00013698,2]
[331634824,1720596644663,-500.0,0.00013698,2]
[331634825,1720596644672,-500.0,0.00013698,2]
[331634826,1720596644681,-1157.38,0.00013698,2]
[331634827,1720596644691,-1907.39,0.00013698,2]
[331634828,1720596644701,-1177.35,0.00013698,2]
[331634829,1720596644712,-921.7,0.00013698,2]
[331634830,1720596644721,-1009.33,0.00013698,2]
[331634831,1720596644730,-705.11,0.00013698,2]
[331634832,1720596644739,-500.0,0.00013698,2]
[331634833,1720596644748,-1708.33,0.00013698,2]
[331634834,1720596644757,-1025.48,0.00013698,2]
[331634835,1720596644766,-500.0,0.00013698,2]
[331634836,1720596644775,-2286.43,0.00013698,2]
[331634837,1720596644784,-500.0,0.00013698,2]
[331634838,1720596644793,-500.0,0.00013698,2]
[331634839,1720596644802,-500.0,0.00013698,2]
[331634840,1720596644812,-2350.53,0.00013698,2]
[331634841,1720596644821,-709.76,0.00013698,2]
[331634842,1720596644830,-904.69,0.00013698,2]
[331634843,1720596644839,-1468.62,0.00013698,2]
[331634844,1720596644848,-500.0,0.00013698,2]
[331634845,1720596644857,-500.0,0.00013698,2]
[331634846,1720596644866,-622.23,0.00013698,2]
[331634847,1720596644876,-500.0,0.00013698,2]
[331634848,1720596644885,-500.0,0.00013698,2]
[331634849,1720596644895,-500.0,0.00013698,2]
[331634850,1720596644904,-521.23,0.00013698,2]
[331634851,1720596644914,-625.57,0.00013698,2]
[331634852,1720596644923,-1518.51,0.00013698,2]
[331634853,1720596644933,-500.0,0.00013698,2]
[331634854,1720596644943,-500.0,0.00013698,2]
[331634855,1720596644952,-500.0,0.00013698,2]
[331634856,1720596644962,-500.0,0.00013698,2]
[331634857,1720596644971,-580.09,0.00013698,2]
[331634858,1720596644980,-610.11,0.00013698,2]
[331634859,1720596644989,-1012.1,0.00013698,2]
[331634860,1720596644998,-645.36,0.00013698,2]
[331634861,1720596645007,-726.78,0.00013698,2]
[331634862,1720596645017,-500.0,0.00013698,2]
[331634863,1720596645027,-1129.59,0.00013698,2]
[331634864,1720596645035,-500.0,0.00013698,2]
[331634865,1720596645045,-821.63,0.00013698,2]
[331634866,1720596645054,-500.0,0.00013698,2]
[331634867,1720596645063,-964.61,0.00013698,2]
[331634868,1720596645073,-1427.9,0.00013698,2]
[331634869,1720596645082,-500.0,0.00013698,2]
[331634870,1720596645092,-500.0,0.00013698,2]
[331634871,1720596645101,-500.0,0.00013698,2]
[331634872,1720596645111,-500.0,0.00013698,2]
[331634873,1720596645120,-1442.4,0.00013698,2]
[331634874,1720596645131,-613.5,0.00013698,2]
[331634875,1720596645140,-534.32,0.00013698,2]
[331634876,1720596645150,-720.57,0.00013698,2]
[331634877,1720596645159,-500.0,0.00013698,2]
[331634878,1720596645169,-500.0,0.00013698,2]
[331634879,1720596645178,-500.0,0.00013698,2]
[331634880,1720596645188,-500.0,0.00013698,2]
[331634881,1720596645196,-1316.45,0.00013698,2]
[331634882,1720596645206,-871.56,0.00013698,2]
[331634883,1720596645216,-2275.79,0.00013698,2]
[331634884,1720596645225,-503.29,0.00013698,2]
[331634885,1720596645235,-1587.03,0.00013698,2]
[331634886,1720596645244,-500.0,0.00013698,2]
[331634887,1720596645253,-500.0,0.00013698,2]
[331634888,1720596645262,-500.0,0.00013698,2]
[331634889,1720596645271,-1198.16,0.00013698,2]
[331634890,1720596645281,-500.0,0.00013698,2]
[331634891,1720596645291,-986.53,0.00013698,2]
[331634892,1720596645301,-500.0,0.00013698,2]
[331634893,1720596645310,-1573.7,0.00013698,2]
[331634894,1720596645319,-500.0,0.00013698,2]
[331634895,1720596645328,-568.46,0.00013698,2]
[331634896,1720596645337,-500.0,0.00013698,2]
[331634897,1720596645346,-500.0,0.00013698,2]
[331634898,1720596645356,-1391.88,0.00013698,2]
[331634899,1720596645365,-500.0,0.00013698,2]
[331634900,1720596645374,-500.0,0.00013698,2]
[331634901,1720596645384,-500.0,0.00013698,2]
[331634902,1720596645393,-500.0,0.00013698,2]
[331634903,1720596645404,-312.97631615,0.00013698,2]
[331634904,1720596645414,-500.0,0.00013698,2]
[331634905,1720596645423,-697.06,0.00013698,2]
[331634906,1720596645432,-580.13,0.00013698,2]
[331634907,1720596645442,-500.0,0.00013698,2]
[331634908,1720596645450,-500.0,0.00013698,2]
[331634909,1720596645459,-1687.6,0.00013698,2]
[331634910,1720596645469,-500.0,0.00013698,2]
[331634911,1720596645478,-693.56,0.00013698,2]
[331634912,1720596645487,-627.37,0.00013698,2]
[331634913,1720596645496,-650.86,0.00013698,2]
[331634914,1720596645505,-500.0,0.00013698,2]
[331634915,1720596645517,-500.0,0.00013698,2]
[331634916,1720596645528,-500.0,0.00013698,2]
[331634917,1720596645538,-690.89,0.00013698,2]
[331634918,1720596645549,-500.0,0.00013698,2]
[331634919,1720596645559,-500.0,0.00013698,2]
[331634920,1720596645568,-1427.77,0.00013698,2]
[331634921,1720596645578,-776.84,0.00013698,2]
[331634922,1720596645587,-1683.17,0.00013698,2]
[331634923,1720596645596,-500.0,0.00013698,2]
[331634924,1720596645758,-500.0,0.00013698,2]
[331634925,1720596645769,-585.55,0.00013698,2]
[331634926,1720596645778,-500.0,0.00013698,2]
[331634928,1720596645788,-578.39,0.00013698,2]
[331634930,1720596645798,-1000.01,0.00013698,2]
[331634932,1720596645808,-661.0,0.00013698,2]
[331634933,1720596645818,-467.53054708,0.00013698,2]
[331634935,1720596645828,-500.0,0.00013698,2]
[331634937,1720596645838,-1559.04,0.00013698,2]
[331634939,1720596645848,-1181.03,0.00013698,2]
[331634940,1720596645858,-772.83,0.00013698,2]
[331634941,1720596645867,-988.51,0.00013698,2]
[331634942,1720596645878,-821.57,0.00013698,2]
[331634944,1720596645887,-607.64315722,0.00013698,2]
[331634945,1720596645896,-1483.71,0.00013698,2]
[331634946,1720596645906,-500.0,0.00013698,2]
[331634947,1720596645916,-858.65,0.00013698,2]
[331634948,1720596645926,-825.27,0.00013698,2]
[331634949,1720596645935,-868.45,0.00013698,2]
[331634950,1720596645944,-1105.16,0.00013698,2]
[331634951,1720596645954,-500.0,0.00013698,2]
[331634952,1720596645963,-1239.49,0.00013698,2]
[331634953,1720596645982,-500.0,0.00013698,2]
[331634954,1720596645994,-500.0,0.00013698,2]
[331634955,1720596646004,-890.09,0.00013698,2]
[331634956,1720596646015,-572.3,0.00013698,2]
[331634957,1720596646025,-500.0,0.00013698,2]
[331634958,1720596646035,-874.31,0.00013698,2]
[331634959,1720596646045,-500.0,0.00013698,2]
[331634960,1720596646056,-500.0,0.00013698,2]
[331634961,1720596646066,-2274.55,0.00013698,2]
[331634962,1720596646076,-1127.71,0.00013698,2]
[331634963,1720596646086,-935.24,0.00013698,2]
[331634964,1720596646097,-760.0,0.00013698,2]
[331634965,1720596646107,-616.91,0.00013698,2]
[331634966,1720596646117,-779.19,0.00013698,2]
[331634967,1720596646129,-500.0,0.00013698,2]
[331634969,1720596646140,-908.72,0.00013698,2]
[331634970,1720596646151,-2435.74,0.00013698,2]
[331634971,1720596646160,-1288.68,0.00013698,2]
[331634972,1720596646170,-1407.1,0.00013698,2]
[331634973,1720596646180,-503.52,0.00013698,2]
[331634974,1720596646190,-273.81104041,0.00013698,2]
[331634975,1720596646997,-587.23895959,0.00013698,2]
[331634976,1720596647007,-613.20070541,0.00013698,2]
[331634977,1720596647017,-500.0,0.00013698,2]
[331634978,1720596647027,-1380.88,0.00013698,2]
[331634979,1720596647037,-841.21185145,0.00013698,2]
[331634980,1720596647049,-508.31814855,0.00013698,2]
[331634981,1720596647060,-205.89848481,0.00013698,2]
[331634982,1720596647072,-294.10151519,0.00013698,2]
[331634983,1720596647081,-500.0,0.00013698,2]
[331634984,1720596647091,-500.0,0.00013698,2]
[331634985,1720596647101,-1209.85,0.00013698,2]
[331634986,1720596647111,-596.41,0.00013698,2]
[331634987,1720596647121,-1008.2,0.00013698,2]
[331634988,1720596647132,-500.0,0.00013698,2]
[331634989,1720596647142,-462.86878506,0.00013698,2]
[331634990,1720596647157,-175.08121494,0.00013698,2]
[331634991,1720596647167,-518.07718486,0.00013698,2]
[331634992,1720596647177,-1710.84,0.00013698,2]
[331634993,1720596647187,-1736.31,0.00013698,2]
[331634994,1720596647196,-500.0,0.00013698,2]
[331634995,1720596647206,-668.32,0.00013698,2]
[331634996,1720596647216,-500.0,0.00013698,2]
[331634997,1720596647225,-569.89,0.00013698,2]
[331634998,1720596647234,-500.0,0.00013698,2]
[331634999,1720596647244,-1213.92,0.00013698,2]
[331635000,1720596647254,-890.61,0.00013698,2]
[331635001,1720596647264,-500.0,0.00013698,2]
[331635002,1720596647274,-1098.79,0.00013698,2]
[331635003,1720596647283,-500.0,0.00013698,2]
[331635004,1720596647294,-500.0,0.00013698,2]
[331635005,1720596647303,-500.0,0.00013698,2]
[331635006,1720596647313,-500.0,0.00013698,2]
[331635007,1720596647323,-943.72,0.00013698,2]
[331635008,1720596647333,-500.0,0.00013698,2]
[331635009,1720596647343,-500.0,0.00013698,2]
[331635010,1720596647352,-500.0,0.00013698,2]
[331635011,1720596647362,-500.0,0.00013698,2]
[331635012,1720596647372,-500.0,0.00013698,2]
[331635013,1720596647382,-500.0,0.00013698,2]
[331635014,1720596647392,-500.0,0.00013698,2]
[331635015,1720596647401,-654.84,0.00013698,2]
[331635016,1720596647411,-500.0,0.00013698,2]
[331635017,1720596647420,-2631.43,0.00013698,2]
[331635018,1720596647430,-10878.59,0.00013698,2]
[331635019,1720596647439,-500.0,0.00013698,2]
[331635020,1720596647449,-614.99,0.00013698,2]
[331635021,1720596647459,-500.0,0.00013698,2]
[331635022,1720596647468,-500.0,0.00013698,2]
[331635023,1720596647478,-854.43,0.00013698,2]
[331635024,1720596647488,-500.0,0.00013698,2]
[331635025,1720596647498,-1440.25,0.00013698,2]
[331635026,1720596647508,-908.97,0.00013698,2]
[331635027,1720596647519,-500.0,0.00013698,2]
[331635028,1720596647530,-1831.1,0.00013698,2]
[331635029,1720596647539,-1950.95,0.00013698,2]
[331635030,1720596647549,-545.34,0.00013698,2]
[331635031,1720596647559,-2840.22,0.00013698,2]
[331635032,1720596647568,-1035.92,0.00013698,2]
[331635033,1720596647579,-1578.1,0.00013698,2]
[331635034,1720596647589,-640.84,0.00013698,2]
[331635035,1720596647599,-826.09,0.00013698,2]
[331635036,1720596647609,-500.0,0.00013698,2]
[331635037,1720596647619,-500.0,0.00013698,2]
[331635038,1720596647630,-500.0,0.00013698,2]
[331635039,1720596647640,-500.0,0.00013698,2]
[331635040,1720596647650,-500.0,0.00013698,2]
[331635041,1720596647660,-830.97,0.00013698,2]
[331635042,1720596647669,-1100.44,0.00013698,2]
[331635043,1720596647680,-809.48,0.00013698,2]
[331635044,1720596647690,-897.5,0.00013698,2]
[331635045,1720596647702,-500.0,0.00013698,2]
[331635046,1720596647712,-500.0,0.00013698,2]
[331635047,1720596647722,-500.0,0.00013698,2]
[331635048,1720596647732,-500.0,0.00013698,2]
[331635049,1720596647742,-1349.69,0.00013698,2]
[331635050,1720596647751,-500.0,0.00013698,2]
[331635051,1720596647761,-3.3016002,0.00013698,2]
[331635052,1720596648082,-311.65,0.00013698,2]
[331635053,1720596648528,-185.0483998,0.00013698,2]
[331635054,1720596648538,-1366.21,0.00013698,2]
[331635055,1720596648548,-148.0016002,0.00013698,2]
[331635056,1720596648560,-351.9983998,0.00013698,2]
[331635057,1720596648570,-1612.48,0.00013698,2]
[331635058,1720596648580,-837.68,0.00013698,2]
[331635059,1720596648589,-714.85,0.00013698,2]
[331635060,1720596648599,-1650.67,0.00013698,2]
[331635061,1720596648608,-500.0,0.00013698,2]
[331635062,1720596648618,-500.0,0.00013698,2]
[331635063,1720596648629,-500.0,0.00013698,2]
[331635064,1720596648638,-1214.37,0.00013698,2]
[331635065,1720596648648,-1203.67,0.00013698,2]
[331635066,1720596648657,-500.0,0.00013698,2]
[331635067,1720596648668,-500.0,0.00013698,2]
[331635068,1720596648677,-1473.97,0.00013698,2]
[331635069,1720596648687,-900.69,0.00013698,2]
[331635070,1720596648697,-1519.47,0.00013698,2]
[331635071,1720596648707,-843.18,0.00013698,2]
[331635072,1720596648717,-500.0,0.00013698,2]
[331635073,1720596648727,-593.41,0.00013698,2]
[331635074,1720596648736,-1750.87,0.00013698,2]
[331635075,1720596648745,-500.0,0.00013698,2]
[331635076,1720596648755,-500.0,0.00013698,2]
[331635077,1720596648764,-500.0,0.00013698,2]
[331635078,1720596648773,-500.0,0.00013698,2]
[331635079,1720596648782,-1518.49,0.00013698,2]
[331635080,1720596648792,-500.0,0.00013698,2]
[331635081,1720596648802,-699.56,0.00013698,2]
[331635082,1720596648811,-504.05,0.00013698,2]
[331635083,1720596648821,-500.0,0.00013698,2]
[331635084,1720596648831,-500.0,0.00013698,2]
[331635085,1720596648841,-2367.47,0.00013698,2]
[331635086,1720596648851,-1836.93,0.00013698,2]
[331635087,1720596648862,-693.99,0.00013698,2]
[331635088,1720596648871,-500.0,0.00013698,2]
[331635089,1720596648881,-500.0,0.00013698,2]
[331635090,1720596648891,-976.49,0.00013698,2]
[331635091,1720596648901,-1044.98,0.00013698,2]
[331635092,1720596648910,-590.35,0.00013698,2]
[331635093,1720596648920,-500.0,0.00013698,2]
[331635094,1720596648930,-1646.59,0.00013698,2]
[331635095,1720596648939,-500.0,0.00013698,2]
[331635096,1720596648948,-1335.34,0.00013698,2]
[331635097,1720596648958,-1836.33,0.00013698,2]
[331635098,1720596648968,-500.0,0.00013698,2]
[331635099,1720596648978,-500.0,0.00013698,2]
[331635100,1720596648988,-500.0,0.00013698,2]
[331635101,1720596648997,-500.0,0.00013698,2]
[331635102,1720596649008,-644.0,0.00013698,2]
[331635103,1720596649017,-1260.5,0.00013698,2]
[331635104,1720596649027,-1164.7,0.00013698,2]
[331635105,1720596649037,-2090.06,0.00013698,2]
[331635106,1720596649047,-1435.54,0.00013698,2]
[331635107,1720596649057,-2238.03,0.00013698,2]
[331635108,1720596649067,-1699.93,0.00013698,2]
[331635109,1720596649077,-500.0,0.00013698,2]
[331635110,1720596649087,-1382.37,0.00013698,2]
[331635111,1720596649096,-932.07,0.00013698,2]
[331635112,1720596649106,-1459.26,0.00013698,2]
[331635113,1720596649116,-1427.14,0.00013698,2]
[331635114,1720596649126,-527.86,0.00013698,2]
[331635115,1720596649136,-500.0,0.00013698,2]
[331635116,1720596649146,-583.02297633,0.00013698,2]
[331635117,1720596649156,-1550.5,0.00013698,2]
[331635118,1720596649165,-1304.45,0.00013698,2]
[331635119,1720596649176,-500.0,0.00013698,2]
[331635120,1720596649186,-2033.85,0.00013698,2]
[331635121,1720596649195,-1068.64,0.00013698,2]
[331635122,1720596649205,-500.0,0.00013698,2]
[331635123,1720596649215,-500.0,0.00013698,2]
[331635124,1720596649225,-500.0,0.00013698,2]
[331635125,1720596649235,-925.22,0.00013698,2]
[331635126,1720596649244,-2004.17,0.00013698,2]
[331635127,1720596649254,-500.0,0.00013698,2]
[331635128,1720596649264,-1077.06,0.00013698,2]
[331635129,1720596649274,-1321.39,0.00013698,2]
[331635130,1720596649284,-437.76452688,0.00013698,2]
[331635131,1720596649298,-268.70893827,0.00013698,2]
[331635132,1720596649310,-200.90653485,0.00013698,2]
[331635133,1720596649319,-564.2,0.00013698,2]
[331635134,1720596649329,-527.3557205,0.00013698,2]
[331635135,1720596649339,-976.59,0.00013698,2]
[331635136,1720596649350,-646.82,0.00013698,2]
[331635137,1720596649359,-500.0,0.00013698,2]
[331635138,1720596649370,-480.70534464,0.00013698,2]
[331635139,1720596650040,-1013.05140031,0.00013654,2]
[331635140,1720596650358,-251.7855931,0.00012965,2]
[331635141,1720596650368,-4452.2144099,0.00013654,2]
[331635142,1720596650381,-9249.14818979,0.00013654,2]
[331635143,1720596650392,-436.30465536,0.00013698,2]
[331635144,1720596650401,-500.0,0.00013698,2]
[331635145,1720596650411,-500.0,0.00013698,2]
[331635146,1720596650420,-600.89,0.00013698,2]
[331635147,1720596650430,-500.0,0.00013698,2]
[331635148,1720596650439,-1359.02,0.00013698,2]
[331635149,1720596650450,-500.0,0.00013698,2]
[331635150,1720596650459,-2088.8391029,0.00013698,2]
[331635151,1720596650472,-448.3908971,0.00013698,2]
[331635152,1720596650482,-5519.18280699,0.00013698,2]
[331635153,1720596650494,-525.88944331,0.00013698,2]
[331635154,1720596650595,-2551.82642676,0.00013698,2]
[331635155,1720596651403,-582.36132294,0.00013698,2]
[331635156,1720596651413,-500.0,0.00013698,2]
[331635157,1720596651422,-324.63867706,0.00013698,2]
[331635158,1720596652222,-385.22854653,0.00013128,2]
[331635159,1720596652231,-2065.40838886,0.00013407,2]
[331635160,1720596652241,-150.439,0.00013606,2]
[331635161,1720596652251,-175.36132294,0.00013698,2]
[331635162,1720596652260,-67.70757275,0.00013698,2]
[331635163,1720596681640,500.0,0.00012241,2]
[331635164,1720596682042,264.88,0.0001084,2]
[331635165,1720596732955,606.95009778,0.00012241,2]
[331635166,1720596735787,-239.5842,0.00012628,2]
[331635167,1720596735815,-250.0,0.00012744,2]
[331635168,1720596735845,-264.88,0.00013104,2]
[331635169,1720596735873,-446.118849,0.00013357,2]
[331635170,1720596735902,-1005.75868551,0.00013424,2]
[331635171,1720596735929,-1085.6879482,0.00013424,2]
[331635172,1720596735957,-2141.63460873,0.00013472,2]
[331635173,1720596735988,-322.81903102,0.00013598,2]
[331635174,1720596736017,-300.0,0.00013605,2]
[331635175,1720596736048,-166.995,0.00013606,2]
[331635176,1720596736076,-450.077,0.00013606,2]
[331635177,1720596736105,-809.0,0.00013606,2]
[331635178,1720596736133,-372.407,0.00013606,2]
[331635179,1720596736161,-1888.85878225,0.00013606,2]
[331635180,1720596736190,-553.79461,0.0001367,2]
[331635181,1720596736218,-2218.36242725,0.00013698,2]
[331635182,1720596736247,-663.97,0.00013698,2]
[331635183,1720596736275,-500.0,0.00013698,2]
[331635184,1720596736303,-555.15,0.00013698,2]
[331635185,1720596736331,-741.79,0.00013698,2]
[331635186,1720596736359,-919.95,0.00013698,2]
[331635187,1720596736387,-1289.55,0.00013698,2]
[331635188,1720596736414,-500.0,0.00013698,2]
[331635189,1720596736441,-500.0,0.00013698,2]
[331635190,1720596736469,-500.0,0.00013698,2]
[331635191,1720596736497,-500.0,0.00013698,2]
[331635192,1720596736525,-822.16,0.00013698,2]
[331635193,1720596736554,-592.48,0.00013698,2]
[331635194,1720596736582,-1307.32,0.00013698,2]
[331635195,1720596736610,-1127.28,0.00013698,2]
[331635196,1720596736640,-2016.19,0.00013698,2]
[331635197,1720596736668,-1009.37,0.00013698,2]
[331635198,1720596736698,-2064.8,0.00013698,2]
[331635199,1720596736731,-2096.94,0.00013698,2]
[331635200,1720596736759,-500.0,0.00013698,2]
[331635201,1720596736787,-500.0,0.00013698,2]
[331635202,1720596736816,-1140.31,0.00013698,2]
[331635203,1720596736848,-500.0,0.00013698,2]
[331635204,1720596736878,-500.0,0.00013698,2]
[331635205,1720596736906,-500.0,0.00013698,2]
[331635206,1720596736933,-500.0,0.00013698,2]
[331635207,1720596736961,-559.6,0.00013698,2]
[331635208,1720596736990,-958.73,0.00013698,2]
[331635209,1720596737018,-1235.77,0.00013698,2]
[331635210,1720596737046,-2217.21,0.00013698,2]
[331635211,1720596737074,-2349.43,0.00013698,2]
[331635212,1720596737102,-500.0,0.00013698,2]
[331635213,1720596737130,-631.62564042,0.00013698,2]
[331635214,1720596737157,-500.0,0.00013698,2]
[331635215,1720596737185,-1482.0,0.00013698,2]
[331635216,1720596737214,-500.0,0.00013698,2]
[331635217,1720596737243,-500.0,0.00013698,2]
[331635218,1720596737271,-985.84,0.00013698,2]
[331635219,1720596737551,-576.33,0.00013698,2]